[Event "Marshall CC FIDE Premier March 2024"]
[Site "New York"]
[Date "2024.03.03"]
[Round "4.1"]
[White "Rama, Tejas"]
[Black "Bortnyk, Mykola"]
[Result "1-0"]
[ECO "E11"]
[WhiteElo "2221"]
[BlackElo "2453"]
[Annotator "RC"]
[PlyCount "118"]
[EventDate "2024.02.02"]
[EventType "swiss"]
[EventCountry "USA"]
[SourceTitle "playchess.com"]
[Source "ChessBase"]
[SourceQuality "1"]
[TimeControl "5400+30"]

1. d4 {[%emt 0:00:03]} Nf6 {[%emt 0:24:10]} 2. c4 {[%emt 0:00:06]} e6 {[%emt 0:00:03]} 3. Nf3 {[%emt 0:00:05]} Bb4+ {[%emt 0:00:31]} 4. Bd2 {[%emt 0:00:06]} a5 {[%emt 0:00:04]} 5. a3 {[%emt 0:00:03]} Bxd2+ {[%emt 0:00:09]} 6. Qxd2 {[%emt 0:00:02]} d6 {[%emt 0:00:42]} 7. Nc3 {[%emt 0:00:08]} Nbd7 {[%emt 0:00:41]} 8. e4 {[%emt 0:01:02]} e5 {[%emt 0:00:13]} 9. O-O-O {[%emt 0:02:22]} exd4 {[%emt 0:01:22]} 10. Nxd4 {[%emt 0:00:05]} O-O {[%emt 0:01:05]} 11. Bd3 {[%emt 0:00:48]} Ne5 {[%emt 0:00:43]} 12. Be2 {[%emt 0:00:33]} Nfd7 {[%emt 0:01:44]} 13. f4 {[%emt 0:01:27]} Nc6 {[%emt 0:00:02]} 14. Ndb5 {[%emt 0:13:16]} Nc5 {[%emt 0:01:02]} 15. Kb1 {[%emt 0:00:53]} a4 {[%emt 0:03:35]} 16. Qc2 {[%emt 0:02:02]} Be6 {[%emt 0:04:39]} 17. f5 {[%emt 0:11:25]} Bd7 {[%emt 0:00:14]} 18. Nd5 {[%emt 0:00:07]} Rc8 {[%emt 0:00:38]} 19. f6 {[%emt 0:01:59]} Be6 {[%emt 0:00:48]} 20. fxg7 {[%emt 0:08:28]} Kxg7 {[%emt 0:01:18]} 21. Rhf1 {[%emt 0:02:46]} Bxd5 {[%emt 0:01:26]} 22. exd5 {[%emt 0:01:26]} Ne5 {[%emt 0:00:02]} 23. Nd4 {[%emt 0:01:32]} Kh8 {[%emt 0:00:09]} 24. Rf4 {[%emt 0:06:13]} Ng6 {[%emt 0:00:59]} 25. Qc3 {[%emt 0:13:44]} f6 {[%emt 0:09:13]} 26. Rf5 {[%emt 0:01:56]} Qe7 {[%emt 0:00:32]} 27. Rdf1 {[%emt 0:01:56]} Rce8 {[%emt 0:02:13]} 28. Bh5 {[%emt 0:04:18]} Qe4+ {[%emt 0:02:38]} 29. Ka2 {[%emt 0:05:40]} Qe3 {[%emt 0:02:41]} 30. Qxe3 {[%emt 0:00:54]} Rxe3 {[%emt 0:00:02]} 31. Rxf6 {[%emt 0:01:40]} Rxf6 {[%emt 0:00:12]} 32. Rxf6 {[%emt 0:00:01]} Nb3 {[%emt 0:01:07]} 33. Re6 {[%emt 0:01:04]} Rxe6 {[%emt 0:00:18]} 34. Nxe6 {[%emt 0:00:32]} Ne5 {[%emt 0:00:01]} 35. Nxc7 {[%emt 0:01:28]} Nxc4 {[%emt 0:00:16]} 36. Be8 {[%emt 0:01:11]} Nc5 {[%emt 0:03:43]} 37. Ne6 {[%emt 0:00:21]} Nd3 {[%emt 0:02:29]} 38. Bxa4 {[%emt 0:00:18]} Ne3 {[%emt 0:00:07]} 39. Bb5 {[%emt 0:01:02]} Nc1+ {[%emt 0:00:05]} 40. Kb1 {[%emt 0:00:08]} Nb3 {[%emt 0:00:01]} 41. Nf4 {[%emt 0:01:31]} Kg7 {[%emt 0:00:11]} 42. Ba4 {[%emt 0:02:42]} Nd4 {[%emt 0:00:01]} 43. Kc1 {[%emt 0:01:50]} Kf6 {[%emt 0:00:33]} 44. Kd2 {[%emt 0:02:22]} Nf1+ {[%emt 0:00:02]} 45. Kd3 {[%emt 0:01:11]} Ke5 {[%emt 0:00:01]} 46. Ne6 {[%emt 0:03:40]} Nf5 {[%emt 0:00:08]} 47. Nd8 {[%emt 0:01:25]} Nxh2 {[%emt 0:00:50]} 48. Nxb7 {[%emt 0:00:06]} Ng4 {[%emt 0:00:03]} 49. Bd7 {[%emt 0:00:42]} Nge3 {[%emt 0:01:07]} 50. g4 {[%emt 0:00:34]} Nxg4 {[%emt 0:00:05]} 51. Bxf5 {[%emt 0:00:03]} Kxf5 {[%emt 0:00:05]} 52. Nxd6+ {[%emt 0:00:02]} Kf4 {[%emt 0:00:42]} 53. Nc4 {[%emt 0:01:04]} Nf6 {[%emt 0:00:26]} 54. d6 {[%emt 0:00:29]} Nd7 {[%emt 0:01:31]} 55. a4 {[%emt 0:00:23]} Kf5 {[%emt 0:00:21]} 56. a5 {[%emt 0:00:53]} Ke6 {[%emt 0:00:07]} 57. b4 {[%emt 0:00:34]} Kd5 {[%emt 0:02:30]} 58. a6 {[%emt 0:00:04]} Kc6 {[%emt 0:00:03]} 59. b5+ {[%emt 0:00:06]} Kd5 {[%emt 0:39:17]} 1-0

[Event "Marshall CC FIDE Premier March 2024"]
[Site "New York"]
[Date "2024.03.03"]
[Round "4.2"]
[White "Peterson, Ryan H"]
[Black "Hebbar, Eshaan"]
[Result "0-1"]
[ECO "D45"]
[WhiteElo "2025"]
[BlackElo "2187"]
[Annotator "RC"]
[PlyCount "163"]
[EventDate "2024.02.02"]
[EventType "swiss"]
[EventCountry "USA"]
[SourceTitle "playchess.com"]
[Source "ChessBase"]
[SourceQuality "1"]
[TimeControl "5400+30"]

1. Nf3 {[%emt 0:00:13]} d5 {[%emt 0:00:06]} 2. e3 {[%emt 0:00:08]} Nf6 {[%emt 0:00:20]} 3. c4 {[%emt 0:00:13]} c6 {[%emt 0:01:02]} 4. Nc3 {[%emt 0:00:53]} e6 {[%emt 0:00:45]} 5. b3 {[%emt 0:00:17]} Nbd7 {[%emt 0:01:17]} 6. Bb2 {[%emt 0:00:18]} Bd6 {[%emt 0:00:45]} 7. Qc2 {[%emt 0:02:44]} O-O {[%emt 0:00:25]} 8. d4 {[%emt 0:02:36]} Re8 {[%emt 0:05:30]} 9. Be2 {[%emt 0:00:30]} e5 {[%emt 0:07:58]} 10. cxd5 {[%emt 0:02:39]} cxd5 {[%emt 0:01:06]} 11. Nb5 {[%emt 1:25:29]} Bb4+ {[%emt 0:03:22]} 12. Bc3 {[%emt 0:00:00]} Bxc3+ {[%emt 0:02:55]} 13. Qxc3 {[%emt 0:00:00]} e4 {[%emt 0:03:44]} 14. Ne5 {[%emt 0:00:00]} Re7 {[%emt 0:05:22]} 15. Rc1 {[%emt 0:00:00]} Nb6 {[%emt 0:01:23]} 16. O-O {[%emt 0:00:00]} Ne8 {[%emt 0:09:24]} 17. h3 {[%emt 0:00:00]} a6 {[%emt 0:05:10]} 18. Na3 {[%emt 0:00:00]} g6 {[%emt 0:02:02]} 19. Ng4 {[%emt 0:00:00]} h5 {[%emt 0:00:07]} 20. Nh2 {[%emt 0:00:00]} Nd6 {[%emt 0:04:37]} 21. Qa5 {[%emt 0:00:00]} Nf5 {[%emt 0:02:02]} 22. Nb1 {[%emt 0:00:00]} Re6 {[%emt 0:05:23]} 23. Nc3 {[%emt 0:00:00]} Qg5 {[%emt 0:02:18]} 24. Rfd1 {[%emt 0:00:00]} Kg7 {[%emt 0:10:02]} 25. Bf1 {[%emt 0:00:00]} Nh4 {[%emt 0:07:34]} 26. Kh1 {[%emt 0:00:00]} Qf5 {[%emt 0:00:49]} 27. Rd2 {[%emt 0:00:00]} g5 {[%emt 0:00:20]} 28. g3 {[%emt 0:00:00]} Nf3 {[%emt 0:00:28]} 29. Nxf3 {[%emt 0:00:00]} exf3 {[%emt 0:01:43]} 30. e4 {[%emt 0:00:00]} Qg6 {[%emt 0:01:33]} 31. Nxd5 {[%emt 0:00:00]} Nxd5 {[%emt 0:00:12]} 32. Qxd5 {[%emt 0:00:00]} Rxe4 {[%emt 0:06:29]} 33. Bd3 {[%emt 0:00:00]} Qe6 {[%emt 0:00:11]} 34. Qxe6 {[%emt 0:00:00]} Rxe6 {[%emt 0:00:02]} 35. Bf5 {[%emt 0:00:00]} Re8 {[%emt 0:00:51]} 36. Bxc8 {[%emt 0:00:47]} Raxc8 {[%emt 0:00:01]} 37. Rxc8 {[%emt 0:00:12]} Rxc8 {[%emt 0:00:02]} 38. g4 {[%emt 0:00:42]} hxg4 {[%emt 0:01:02]} 39. hxg4 {[%emt 0:00:02]} Rh8+ {[%emt 0:00:43]} 40. Kg1 {[%emt 0:00:01]} Rh4 {[%emt 0:00:01]} 41. d5 {[%emt 0:02:53]} Rxg4+ {[%emt 0:00:08]} 42. Kf1 {[%emt 0:02:20]} Re4 {[%emt 0:01:34]} 43. d6 {[%emt 0:00:48]} Re8 {[%emt 0:00:05]} 44. Kg1 {[%emt 0:01:55]} Kf6 {[%emt 0:01:52]} 45. Kh2 {[%emt 0:02:20]} Ke6 {[%emt 0:00:39]} 46. Kg3 {[%emt 0:00:15]} Rd8 {[%emt 0:00:05]} 47. Kxf3 {[%emt 0:00:32]} Rxd6 {[%emt 0:00:02]} 48. Rc2 {[%emt 0:00:26]} Rc6 {[%emt 0:01:01]} 49. Rd2 {[%emt 0:00:14]} b6 {[%emt 0:01:35]} 50. Kg4 {[%emt 0:00:30]} f6 {[%emt 0:00:21]} 51. f4 {[%emt 0:00:26]} Rc5 {[%emt 0:00:34]} 52. fxg5 {[%emt 0:01:00]} Rxg5+ {[%emt 0:00:02]} 53. Kf4 {[%emt 0:00:32]} Rd5 {[%emt 0:01:11]} 54. Rc2 {[%emt 0:00:12]} Rd4+ {[%emt 0:00:21]} 55. Ke3 {[%emt 0:00:13]} Ke5 {[%emt 0:00:23]} 56. Rc6 {[%emt 0:01:14]} Rd6 {[%emt 0:00:01]} 57. Rc8 {[%emt 0:00:15]} f5 {[%emt 0:00:17]} 58. Re8+ {[%emt 0:00:17]} Re6 {[%emt 0:00:02]} 59. Ra8 {[%emt 0:00:17]} a5 {[%emt 0:00:09]} 60. Rd8 {[%emt 0:00:31]} f4+ {[%emt 0:00:37]} 61. Kf3 {[%emt 0:01:00]} Rc6 {[%emt 0:02:39]} 62. Re8+ {[%emt 0:01:00]} Kd4 {[%emt 0:00:32]} 63. Kxf4 {[%emt 0:01:02]} Rf6+ {[%emt 0:01:34]} 64. Kg3 {[%emt 0:00:06]} Kc3 {[%emt 0:00:05]} 65. Re3+ {[%emt 0:02:12]} Kb2 {[%emt 0:00:31]} 66. Re2+ {[%emt 0:00:45]} Ka3 {[%emt 0:00:11]} 67. Rd2 {[%emt 0:00:32]} b5 {[%emt 0:02:33]} 68. Rd5 {[%emt 0:02:59]} Rb6 {[%emt 0:00:17]} 69. Rd2 {[%emt 0:00:00]} b4 {[%emt 0:00:49]} 70. Kf3 {[%emt 0:00:00]} Rc6 {[%emt 0:01:53]} 71. Ke3 {[%emt 0:00:16]} Rc1 {[%emt 0:00:21]} 72. Kd3 {[%emt 0:01:00]} Ra1 {[%emt 0:00:18]} 73. Kc4 {[%emt 0:00:05]} Rxa2 {[%emt 0:00:08]} 74. Rd3 {[%emt 0:00:56]} Rc2+ {[%emt 0:00:40]} 75. Kb5 {[%emt 0:00:08]} Rc3 {[%emt 0:00:08]} 76. Rd4 {[%emt 0:00:11]} Kxb3 {[%emt 0:00:22]} 77. Kxa5 {[%emt 0:00:02]} Rc4 {[%emt 0:00:02]} 78. Rd3+ {[%emt 0:00:18]} Kc2 {[%emt 0:00:10]} 79. Rh3 {[%emt 0:00:04]} b3 {[%emt 0:00:14]} 80. Rh2+ {[%emt 0:00:12]} Kb1 {[%emt 0:00:07]} 81. Kb5 {[%emt 0:00:03]} Rg4 {[%emt 0:00:10]} 82. Rh1+ {[%emt 0:03:45]} 0-1

[Event "Marshall CC FIDE Premier March 2024"]
[Site "New York"]
[Date "2024.03.03"]
[Round "4.3"]
[White "Zeltsan, Joseph"]
[Black "Dong, Kyle Qiyu"]
[Result "1-0"]
[ECO "A37"]
[WhiteElo "2419"]
[BlackElo "1966"]
[Annotator "TA"]
[PlyCount "121"]
[EventDate "2024.02.02"]
[EventType "swiss"]
[EventCountry "USA"]
[SourceTitle "playchess.com"]
[Source "ChessBase"]
[SourceQuality "1"]
[TimeControl "5400+30"]

{[%evp 14,121,8,15,11,7,94,88,110,89,90,59,63,56,45,51,56,50,36,22,27,54,25,-18,-22,-33,-19,-36,-22,-33,-20,-17,-20,-18,-15,-18,-12,-14,-12,-34,0,0,0,0,0,0,24,-19,-19,-26,-26,-26,-30,-30,-20,-20,-18,-19,-3,-17,-8,-20,-10,-16,-8,-19,0,0,0,0,0,-27,-19,-29,-20,-35,0,-22,-22,-22,0,-8,0,0,0,0,0,0,119,119,119,119,119,119,119,119,545,535,423,335,1089,1007,935,127,755,720,29977,29978,29984,29971]} 1. Nf3 {[%emt 0:00:02]} c5 {[%emt 0:00:26]} 2. g3 {[%emt 0:06:16]} Nc6 {[%emt 0:01:07]} 3. c4 {[%emt 0:00:05]} g6 {[%emt 0:00:42]} 4. Bg2 {[%emt 0:00:25]} Bg7 {[%emt 0:00:16]} 5. O-O {[%emt 0:01:56]} e6 {[%emt 0:03:31]} 6. Nc3 {[%emt 0:00:12]} Nge7 {[%emt 0:01:34]} 7. e3 {[%emt 0:28:54]} d5 {[%emt 0:08:32]} 8. cxd5 {[%emt 0:01:17]} exd5 {[%emt 0:01:38]} 9. d4 {[%emt 0:00:17]} c4 {[%emt 0:07:32]} (9... cxd4 $11 10. Nxd4 O-O) 10. b3 $16 {[%emt 0:00:42]} a6 {[%emt 0:07:56] White is better.} 11. bxc4 {[%emt 0:13:53]} dxc4 {[%emt 0:01:18]} 12. Qa4 {[%emt 0:00:01]} Be6 $1 {[%emt 0:00:45]} 13. Ng5 {[%emt 0:00:01] Hoping for Nxe6.} b5 {[%emt 0:03:07]} 14. Nxe6 {[%emt 0:00:15]} fxe6 {[%emt 0:00:08]} 15. Qd1 {[%emt 0:04:39]} O-O {[%emt 0:05:46]} 16. Ba3 {[%emt 0:31:32]} b4 {[%emt 0:06:38] [#]} 17. Qa4 {[%emt 0:00:11][%csl LRb4,LRc6]} Qb6 {[%emt 0:03:48][%cal Oa6a5]} 18. Bxb4 {[%emt 0:00:31]} Qxb4 {[%emt 0:00:24]} 19. Bxc6 {[%emt 0:04:23]} (19. Qxb4 {simplifies} Nxb4 20. Bxa8 Rxa8 21. Na4) 19... Nxc6 {[%emt 0:00:23]} (19... Qxc3 $2 {perishes.} 20. Bxa8 (20. Rac1 Qd3 $18) 20... Rxa8 21. Rac1 $16) 20. Qxc6 {[%emt 0:00:02]} Qxc3 {[%emt 0:00:46]} 21. Rac1 {[%emt 0:00:01]} Qb2 {[%emt 0:03:29]} 22. Qxe6+ {[%emt 0:00:07]} Kh8 {[%emt 0:00:12][%cal Of8f2] Threatens to win with ...Rxf2!} 23. Qxc4 {[%emt 0:00:03]} Rab8 {[%emt 0:03:17]} 24. Rc2 {[%emt 0:01:06]} Qb6 {[%emt 0:02:08]} (24... Qb7 {keeps more tension.} 25. Rfc1 a5 26. Qc7 Qd5) 25. Rfc1 {[%emt 0:01:17]} a5 {[%emt 0:06:40]} 26. Qc6 {[%emt 0:04:46]} Qxc6 {[%emt 0:08:42]} 27. Rxc6 {[%emt 0:00:01]} a4 {[%emt 0:00:46]} 28. R1c2 {[%emt 0:00:51]} Ra8 {[%emt 0:04:33]} 29. d5 {[%emt 0:00:31][%cal Bd4d5,Bd5d6][%mdl 32]} Rfd8 {[%emt 0:02:37]} 30. d6 {[%emt 0:00:33]} Ra7 {[%emt 0:02:05]} 31. Rc7 {[%emt 0:00:37]} Ra6 {[%emt 0:00:18][%cal Oa4a3]} 32. R2c6 {[%emt 0:00:18]} Rxc6 {[%emt 0:01:14]} (32... Rxd6 $2 {is the wrong capture.} 33. Rc8+ $18) 33. Rxc6 $11 {[%emt 0:00:01][%mdl 4096] Endgame. KRB-KR} Be5 {[%emt 0:00:01]} 34. Ra6 {[%emt 0:00:11]} Rxd6 {[%emt 0:00:24]} 35. Rxa4 {[%emt 0:00:06]} Rd2 {[%emt 0:01:50]} 36. h4 {[%emt 0:00:57]} Rb2 {[%emt 0:01:17]} 37. Ra7 {[%emt 0:00:12]} Kg8 {[%emt 0:00:28]} 38. a4 {[%emt 0:00:11]} Bc3 {[%emt 0:00:27]} 39. Kf1 {[%emt 0:00:17] Wards off Be1} Ra2 {[%emt 0:00:05]} 40. Ra8+ {[%emt 0:01:20]} Kf7 {[%emt 0:00:45]} 41. Ra7+ {[%emt 0:00:01]} Kg8 {[%emt 0:00:08]} 42. Rc7 {[%emt 0:00:29]} Ba5 {[%emt 0:00:48]} 43. Rc4 {[%emt 0:00:08]} Kf7 {[%emt 0:00:10]} 44. Kg2 {[%emt 0:00:15]} Be1 {[%emt 0:00:18]} 45. Rf4+ {[%emt 0:00:04]} Ke6 {[%emt 0:00:12]} 46. g4 {[%emt 0:00:13]} Ke5 {[%emt 0:01:55]} 47. g5 {[%emt 0:01:20]} Ke6 {[%emt 0:01:24]} 48. Rf6+ {[%emt 0:00:24]} Ke7 {[%emt 0:00:27]} 49. Kf1 {[%emt 0:00:07]} Bc3 {[%emt 0:02:33]} 50. Rc6 {[%emt 0:00:18]} Rxa4 {[%emt 0:03:18]} (50... Bg7 $11) 51. Rxc3 $16 {[%emt 0:00:08] aiming for Rc7+.} Rxh4 $11 {[%emt 0:00:03] KR-KR} 52. Ke2 {[%emt 0:02:21]} Rh5 {[%emt 0:01:21]} 53. f4 {[%emt 0:00:12]} h6 {[%emt 0:00:20]} 54. Rc7+ {[%emt 0:00:26]} Ke6 $2 {[%emt 0:00:35][%mdl 8192] [#]} (54... Kf8 $16 {is tougher.}) 55. Rg7 $1 $18 {[%emt 0:01:13]} Kf5 {[%emt 0:00:33]} 56. Rf7+ {[%emt 0:00:13]} Ke4 $2 {[%emt 0:00:31]} (56... Kg4 57. Rf6 Rh2+ 58. Kd3 Kh5) 57. Re7+ {[%emt 0:00:04]} Kf5 {[%emt 0:01:52]} 58. Re5+ {[%emt 0:00:09]} Kg4 {[%emt 0:00:04]} 59. gxh6 {[%emt 0:00:04] Intending Rxh5 and mate.} Rxh6 {[%emt 0:00:15]} 60. Rg5+ {[%emt 0:00:01]} Kh4 {[%emt 0:00:11]} 61. Kd3 {[%emt 0:00:38] Weighted Error Value: White=0.07 (flawless) /Black=0.41.  Loses game:     	---       	Black=1      Mistake:       	---       	Black=3      Inaccurate:     	White=4     	Black=3      OK:         	White=21    	Black=9      Best:        	White=6     	Black=5      Strong:       	White=1     	Black=1} 1-0

[Event "Marshall CC FIDE Premier March 2024"]
[Site "New York"]
[Date "2024.03.03"]
[Round "4.4"]
[White "Hughes, John L"]
[Black "Hyatt, Jessica"]
[Result "0-1"]
[ECO "C05"]
[WhiteElo "2190"]
[BlackElo "1885"]
[Annotator "RC"]
[PlyCount "92"]
[EventDate "2024.02.02"]
[EventType "swiss"]
[EventCountry "USA"]
[SourceTitle "playchess.com"]
[Source "ChessBase"]
[SourceQuality "1"]
[TimeControl "5400+30"]

1. e4 {[%emt 0:10:02]} e6 {[%emt 0:33:28]} 2. d4 {[%emt 0:00:14]} d5 {[%emt 0:00:15]} 3. Nc3 {[%emt 0:00:10]} Nf6 {[%emt 0:00:06]} 4. e5 {[%emt 0:00:09]} Nfd7 {[%emt 0:00:05]} 5. f4 {[%emt 0:00:21]} c5 {[%emt 0:00:08]} 6. Nce2 {[%emt 0:00:11]} cxd4 {[%emt 0:00:39]} 7. Nxd4 {[%emt 0:00:21]} Nc6 {[%emt 0:00:09]} 8. Ngf3 {[%emt 0:00:41]} Nc5 {[%emt 0:02:15]} 9. Be2 {[%emt 0:02:29]} Be7 {[%emt 0:05:44]} 10. O-O {[%emt 0:05:31]} O-O {[%emt 0:01:20]} 11. Be3 {[%emt 0:00:12]} Ne4 {[%emt 0:07:43]} 12. c3 {[%emt 0:02:46]} f5 {[%emt 0:02:55]} 13. exf6 {[%emt 0:08:55]} gxf6 {[%emt 0:01:56]} 14. Bd3 {[%emt 0:02:22]} Nc5 {[%emt 0:04:41]} 15. Bc2 {[%emt 0:00:43]} a5 {[%emt 0:05:24]} 16. Qe1 {[%emt 0:04:42]} a4 {[%emt 0:01:04]} 17. Qh4 {[%emt 0:04:06]} Rf7 {[%emt 0:01:57]} 18. Nxc6 {[%emt 0:07:15]} bxc6 {[%emt 0:00:08]} 19. Nd4 {[%emt 0:00:11]} Qc7 {[%emt 0:01:31]} 20. Rf3 {[%emt 0:06:41]} Bd6 {[%emt 0:09:27]} 21. f5 {[%emt 0:19:34]} e5 {[%emt 0:00:32]} 22. Ne6 {[%emt 0:06:29]} Qe7 {[%emt 0:00:39]} 23. Raf1 {[%emt 0:04:50]} e4 {[%emt 0:01:00]} 24. Rg3+ {[%emt 0:02:46]} Kh8 {[%emt 0:00:56]} 25. Rg6 {[%emt 0:01:05]} Bxe6 {[%emt 0:05:14]} 26. fxe6 {[%emt 0:00:15]} Nxe6 {[%emt 0:00:03]} 27. Kh1 {[%emt 0:09:31]} Be5 {[%emt 0:00:43]} 28. Bd1 {[%emt 0:00:51]} f5 {[%emt 0:01:50]} 29. Qh3 {[%emt 0:00:04]} Raf8 {[%emt 0:03:15]} 30. Rh6 {[%emt 0:01:20]} a3 {[%emt 0:01:02]} 31. bxa3 {[%emt 0:00:17]} Bxc3 {[%emt 0:00:08]} 32. Bh5 {[%emt 0:00:45]} Bg7 {[%emt 0:03:51]} 33. Rxh7+ {[%emt 0:00:09]} Kg8 {[%emt 0:00:14]} 34. Bxf7+ {[%emt 0:00:43]} Qxf7 {[%emt 0:00:19]} 35. Rh5 {[%emt 0:00:34]} f4 {[%emt 0:00:54]} 36. Qg4 {[%emt 0:00:36]} d4 {[%emt 0:01:01]} 37. Bd2 {[%emt 0:00:35]} e3 {[%emt 0:00:46]} 38. Bb4 {[%emt 0:00:16]} c5 {[%emt 0:00:49]} 39. Re5 {[%emt 0:00:45]} cxb4 {[%emt 0:00:26]} 40. Rxe6 {[%emt 0:00:04]} d3 {[%emt 0:00:29]} 41. axb4 {[%emt 0:00:48]} Qf5 {[%emt 0:00:34]} 42. Qxf5 {[%emt 0:00:38]} Rxf5 {[%emt 0:00:01]} 43. Rd6 {[%emt 0:00:21]} d2 {[%emt 0:00:19]} 44. Kg1 {[%emt 0:00:37]} Bc3 {[%emt 0:00:55]} 45. Rd3 {[%emt 0:00:32]} e2 {[%emt 0:00:22]} 46. Kf2 {[%emt 0:00:31]} e1=Q+ {[%emt 0:00:09]} 0-1

[Event "Marshall CC FIDE Premier March 2024"]
[Site "New York"]
[Date "2024.03.03"]
[Round "4.5"]
[White "Li, Michael"]
[Black "Rosenthal, Max Manuel"]
[Result "1/2-1/2"]
[ECO "C45"]
[WhiteElo "2035"]
[BlackElo "1961"]
[Annotator "RC"]
[PlyCount "217"]
[EventDate "2024.02.02"]
[EventType "swiss"]
[EventCountry "USA"]
[SourceTitle "playchess.com"]
[Source "ChessBase"]
[SourceQuality "1"]
[TimeControl "5400+30"]

1. e4 {[%emt 0:00:08]} e5 {[%emt 0:00:04]} 2. Nf3 {[%emt 0:00:05]} Nc6 {[%emt 0:00:03]} 3. d4 {[%emt 0:00:06]} exd4 {[%emt 0:00:08]} 4. Nxd4 {[%emt 0:00:04]} Nf6 {[%emt 0:00:07]} 5. Nxc6 {[%emt 0:00:04]} bxc6 {[%emt 0:00:08]} 6. Qe2 {[%emt 0:00:08]} a5 {[%emt 0:09:38]} 7. Nc3 {[%emt 0:00:12]} Bb4 {[%emt 0:04:21]} 8. Bd2 {[%emt 0:03:42]} O-O {[%emt 0:01:17]} 9. O-O-O {[%emt 0:04:12]} Re8 {[%emt 0:00:06]} 10. f3 {[%emt 0:02:58]} Qe7 {[%emt 0:02:11]} 11. Qf2 {[%emt 0:12:04]} Rb8 {[%emt 0:01:02]} 12. Bc4 {[%emt 0:05:04]} d6 {[%emt 0:18:45]} 13. Rhe1 {[%emt 0:04:33]} Be6 {[%emt 0:00:19]} 14. Bxe6 {[%emt 0:12:35]} Qxe6 {[%emt 0:02:42]} 15. a3 {[%emt 0:04:40]} Bc5 {[%emt 0:01:28]} 16. Be3 {[%emt 0:01:00]} Bxe3+ {[%emt 0:05:41]} 17. Qxe3 {[%emt 0:00:54]} Rb7 {[%emt 0:01:07]} 18. b3 {[%emt 0:13:51]} Nd7 {[%emt 0:03:46]} 19. f4 {[%emt 0:06:38]} h6 {[%emt 0:04:51]} 20. Qd4 {[%emt 0:02:22]} Reb8 {[%emt 0:04:41]} 21. e5 {[%emt 0:02:30]} d5 {[%emt 0:00:08]} 22. h3 {[%emt 0:04:13]} Qe7 {[%emt 0:00:14]} 23. Kb2 {[%emt 0:02:51]} Nc5 {[%emt 0:00:34]} 24. Ka2 {[%emt 0:01:05]} a4 {[%emt 0:05:15]} 25. b4 {[%emt 0:02:38]} Ne6 {[%emt 0:00:16]} 26. Qd2 {[%emt 0:01:04]} d4 {[%emt 0:00:17]} 27. Ne4 {[%emt 0:03:45]} c5 {[%emt 0:01:28]} 28. Rb1 {[%emt 0:01:29]} cxb4 {[%emt 0:02:40]} 29. axb4 {[%emt 0:00:02]} Rxb4 {[%emt 0:02:38]} 30. f5 {[%emt 0:00:41]} a3 {[%emt 0:01:36]} 31. Rxb4 {[%emt 0:01:12]} Rxb4 {[%emt 0:00:24]} 32. Rb1 {[%emt 0:00:31]} Rxb1 {[%emt 0:01:37]} 33. Kxb1 {[%emt 0:00:01]} Qd7 {[%emt 0:02:38]} 34. Qb4 {[%emt 0:01:32]} Ng5 {[%emt 0:02:15]} 35. Nxg5 {[%emt 0:04:45]} hxg5 {[%emt 0:00:08]} 36. e6 {[%emt 0:00:51]} fxe6 {[%emt 0:00:09]} 37. fxe6 {[%emt 0:00:02]} Qxe6 {[%emt 0:00:20]} 38. Qxd4 {[%emt 0:00:27]} Kf7 {[%emt 0:04:04]} 39. Qc5 {[%emt 0:00:55]} Qe7 {[%emt 0:02:43]} 40. Qd5+ {[%emt 0:00:54]} Kg6 {[%emt 0:00:07]} 41. Ka2 {[%emt 0:00:46]} Qf7 {[%emt 0:02:34]} 42. Qxf7+ {[%emt 0:00:05]} Kxf7 {[%emt 0:00:04]} 43. Kxa3 {[%emt 0:00:03]} Kf6 {[%emt 0:00:03]} 44. Kb4 {[%emt 0:01:49]} Kf5 {[%emt 0:00:07]} 45. Kc5 {[%emt 0:00:29]} Kf4 {[%emt 0:00:02]} 46. Kc6 {[%emt 0:00:07]} Kg3 {[%emt 0:00:27]} 47. Kxc7 {[%emt 0:00:04]} Kxg2 {[%emt 0:00:09]} 48. c4 {[%emt 0:00:02]} Kxh3 {[%emt 0:00:06]} 49. c5 {[%emt 0:00:18]} g4 {[%emt 0:00:05]} 50. c6 {[%emt 0:00:09]} g3 {[%emt 0:00:04]} 51. Kb7 {[%emt 0:00:18]} g2 {[%emt 0:00:10]} 52. c7 {[%emt 0:00:03]} g1=Q {[%emt 0:00:09]} 53. c8=Q+ {[%emt 0:00:03]} Qg4 {[%emt 0:00:34]} 54. Qc3+ {[%emt 0:00:25]} Kg2 {[%emt 0:00:35]} 55. Qd2+ {[%emt 0:00:28]} Kg3 {[%emt 0:00:46]} 56. Qe1+ {[%emt 0:00:41]} Kf4 {[%emt 0:00:09]} 57. Qd2+ {[%emt 0:00:55]} Kf5 {[%emt 0:00:46]} 58. Qd7+ {[%emt 0:00:06]} Kf4 {[%emt 0:00:12]} 59. Qd4+ {[%emt 0:00:36]} Kg3 {[%emt 0:00:14]} 60. Qe5+ {[%emt 0:00:40]} Kh4 {[%emt 0:00:26]} 61. Qe1+ {[%emt 0:01:03]} Kh5 {[%emt 0:00:23]} 62. Qe8+ {[%emt 0:01:02]} g6 {[%emt 0:00:13]} 63. Qh8+ {[%emt 0:00:33]} Kg5 {[%emt 0:00:07]} 64. Qd8+ {[%emt 0:00:15]} Kf4 {[%emt 0:00:29]} 65. Qd4+ {[%emt 0:00:25]} Kg3 {[%emt 0:00:09]} 66. Qd6+ {[%emt 0:00:56]} Kh3 {[%emt 0:00:20]} 67. Qd3+ {[%emt 0:02:20]} Kh4 {[%emt 0:00:08]} 68. Qe3 {[%emt 0:00:58]} g5 {[%emt 0:00:24]} 69. Qe1+ {[%emt 0:00:14]} Qg3 {[%emt 0:00:07]} 70. Qh1+ {[%emt 0:00:09]} Kg4 {[%emt 0:00:06]} 71. Qe4+ {[%emt 0:00:15]} Qf4 {[%emt 0:00:15]} 72. Qe6+ {[%emt 0:00:48]} Kf3 {[%emt 0:00:16]} 73. Qh3+ {[%emt 0:00:20]} Kf2 {[%emt 0:00:19]} 74. Qh8 {[%emt 0:01:56]} g4 {[%emt 0:00:28]} 75. Qb2+ {[%emt 0:00:03]} Kg3 {[%emt 0:00:27]} 76. Kc8 {[%emt 0:00:45]} Kh3 {[%emt 0:00:20]} 77. Qh8+ {[%emt 0:00:06]} Kg2 {[%emt 0:00:08]} 78. Qb2+ {[%emt 0:00:13]} Qf2 {[%emt 0:00:16]} 79. Qb7+ {[%emt 0:00:04]} Kh3 {[%emt 0:00:45]} 80. Qh7+ {[%emt 0:00:23]} Qh4 {[%emt 0:00:16]} 81. Qf5 {[%emt 0:00:07]} Qg3 {[%emt 0:00:41]} 82. Qh7+ {[%emt 0:00:27]} Kg2 {[%emt 0:00:04]} 83. Qe4+ {[%emt 0:00:39]} Qf3 {[%emt 0:00:22]} 84. Qc2+ {[%emt 0:00:07]} Kf1 {[%emt 0:00:25]} 85. Qc1+ {[%emt 0:00:30]} Ke2 {[%emt 0:00:06]} 86. Qc2+ {[%emt 0:00:07]} Ke3 {[%emt 0:00:06]} 87. Qc3+ {[%emt 0:00:42]} Ke4 {[%emt 0:00:05]} 88. Qc4+ {[%emt 0:00:26]} Ke5 {[%emt 0:00:15]} 89. Qc7+ {[%emt 0:00:18]} Kd4 {[%emt 0:00:12]} 90. Qb6+ {[%emt 0:00:21]} Kc4 {[%emt 0:00:44]} 91. Qe6+ {[%emt 0:00:55]} Kc3 {[%emt 0:01:05]} 92. Qe5+ {[%emt 0:00:16]} Kd3 {[%emt 0:00:06]} 93. Qb5+ {[%emt 0:00:36]} Kd2 {[%emt 0:00:46]} 94. Qb2+ {[%emt 0:00:27]} Ke3 {[%emt 0:00:10]} 95. Qc3+ {[%emt 0:00:19]} Kf2 {[%emt 0:00:11]} 96. Qd4+ {[%emt 0:00:30]} Kg3 {[%emt 0:00:28]} 97. Qe5+ {[%emt 0:00:39]} Qf4 {[%emt 0:00:20]} 98. Qc3+ {[%emt 0:00:23]} Kh4 {[%emt 0:00:11]} 99. Qh8+ {[%emt 0:00:10]} Kg5 {[%emt 0:00:06]} 100. Qg7+ {[%emt 0:01:09]} Kh5 {[%emt 0:00:06]} 101. Qh8+ {[%emt 0:00:11]} Qh6 {[%emt 0:00:42]} 102. Qe5+ {[%emt 0:00:11]} Kg6 {[%emt 0:00:16]} 103. Qe6+ {[%emt 0:00:33]} Kh5 {[%emt 0:00:24]} 104. Qe5+ {[%emt 0:00:04]} Qg5 {[%emt 0:00:08]} 105. Qh8+ {[%emt 0:00:21]} Kg6 {[%emt 0:00:05]} 106. Qg8+ {[%emt 0:00:32]} Kf5 {[%emt 0:00:24]} 107. Qd5+ {[%emt 0:00:12]} Kf6 {[%emt 0:00:40]} 108. Qd8+ {[%emt 0:00:04]} Ke5 {[%emt 0:29:48]} 109. Kb7 1/2-1/2